bitfinex/quotes_ETHUSD_20250213
["timestamp","ask_amount","ask_price","bid_price","bid_amount"]
[1739465062743,0.5919,2632.4,2632.2,3.7991]
[1739465062952,0.303,2632.3,2632.2,3.7991]
[1739465063978,0.303,2632.3,2632.0,6.79938]
[1739465064185,0.303,2632.3,2631.7,8.12816237]
[1739465064380,0.639397,2632.2,2631.7,3.79971]
[1739465064591,0.4741437,2632.1,2631.7,3.79971]
[1739465064768,0.04749702,2632.0,2631.7,3.79971]
[1739465065174,0.04749702,2632.0,2631.8,3.79967]
[1739465065495,0.4741437,2632.1,2631.8,3.79967]
[1739465066372,0.0075,2631.9,2631.2,3.80047]
[1739465066574,4.39159,2631.8,2631.1,4.32845237]
[1739465066773,0.0075,2631.6,2631.1,3.80058]
[1739465067087,0.0075,2631.6,2631.4,3.80017]
[1739465067463,0.0075,2631.7,2631.3,6.80039]
[1739465067662,0.36185611,2631.7,2631.4,3.80015]
[1739465067862,0.36185611,2631.7,2631.1,7.32845237]
[1739465067863,0.36185611,2631.7,2631.2,3.0]
[1739465068075,0.6611611,2631.9,2631.4,8.12863237]
[1739465068387,0.303,2631.8,2631.6,3.79995]
[1739465068545,0.303,2631.8,2631.7,3.79982]
[1739465069661,0.303,2631.8,2631.7,7.51924567]
[1739465069857,0.8949,2632.1,2631.9,3.79953]
[1739465070063,0.303,2632.1,2632.0,3.79939]
[1739465070265,0.303,2632.1,2631.9,3.79953]
[1739465070462,0.303,2632.1,2631.8,3.79966]
[1739465070656,0.303,2632.1,2631.8,3.79957]
[1739465071353,0.0075,2632.0,2631.7,3.71942567]
[1739465071748,0.0075,2632.0,2631.7,3.79973]
[1739465071991,0.0075,2632.0,2631.7,7.59947]
[1739465072197,0.0075,2632.0,2631.7,7.59946]
[1739465072413,0.0075,2632.0,2631.7,3.79973]
[1739465072706,0.0075,2632.0,2631.8,3.79959]
[1739465072863,0.303,2632.1,2632.0,3.79939]
[1739465073062,0.303,2632.2,2632.1,3.79912]
[1739465073670,0.38424405,2632.2,2632.1,3.79912]
[1739465074074,0.08124405,2632.2,2632.1,3.79912]
[1739465074480,0.303,2632.5,2632.3,3.79887]
[1739465074727,0.303,2632.5,2632.4,3.79881]
[1739465075283,0.303,2632.5,2632.3,3.79887]
[1739465075483,0.303,2632.5,2632.4,3.79881]
[1739465075794,0.303,2632.5,2632.3,3.79887]
[1739465075997,0.303,2632.5,2632.3,7.59775]
[1739465076200,0.303,2632.5,2632.3,3.79887]
[1739465076400,0.303,2632.5,2632.4,3.79881]
[1739465076692,0.303,2632.5,2632.3,3.79887]
[1739465077283,0.5994,2632.9,2632.4,3.79881]
[1739465077484,0.303,2632.8,2632.0,4.32875107]
[1739465077685,0.0075,2632.6,2632.2,3.79902]
[1739465078001,0.5919,2632.5,2632.2,3.79902]
[1739465078315,0.88014,2632.5,2632.1,3.79924]
[1739465078496,0.88014,2632.5,2632.1,3.79914]
[1739465078686,0.88014,2632.5,2631.8,0.7637]
[1739465079069,0.0075,2632.2,2631.4,4.32875107]
[1739465079284,3.85417955,2632.2,2631.6,6.79995]
[1739465079506,0.0075,2632.0,2631.6,3.79995]
[1739465079704,0.303,2631.9,2631.4,3.80014]
[1739465080035,0.5919,2631.8,2631.2,7.60733]
[1739465080225,0.5919,2631.8,2631.7,3.79982]
[1739465080539,0.303,2632.0,2631.9,3.79949]
[1739465080712,0.303,2632.0,2631.6,3.79992]
[1739465080713,0.84888119,2632.0,2631.7,3.79975]
[1739465080913,0.84888119,2632.0,2631.7,3.79982]
[1739465081304,0.84888119,2632.0,2631.6,3.79986]
[1739465081511,0.84888119,2632.0,2631.8,3.79963]
[1739465081841,0.08143246,2631.9,2631.8,3.79963]
[1739465082844,0.08143246,2631.9,2631.8,6.79963]
[1739465083041,0.08143246,2631.9,2631.8,7.635453]
[1739465083238,0.303,2632.4,2632.3,3.79895]
[1739465083745,0.38402771,2632.4,2632.3,3.79895]
[1739465083897,0.08102771,2632.4,2632.3,3.79895]
[1739465084091,0.5919,2633.0,2632.6,3.7985]
[1739465084391,0.39152771,2632.9,2632.8,3.79814]
[1739465084607,0.39152771,2632.9,2632.3,8.88946107]
[1739465084608,0.39152771,2632.9,2632.4,7.59746]
[1739465084807,0.39152771,2632.9,2632.4,3.79872]
[1739465085010,0.39152771,2632.9,2632.5,3.79858]
[1739465085294,0.71574316,2632.8,2632.5,3.79858]
[1739465085534,0.08157893,2632.7,2632.5,3.79858]
[1739465085742,4.48290393,2633.0,2632.5,3.79858]
[1739465085941,3.89100393,2633.0,2632.9,3.79809]
[1739465086156,4.19400393,2633.0,2632.9,3.79809]
[1739465086496,3.89100393,2633.0,2632.9,3.79809]
[1739465087439,3.89100393,2633.0,2632.9,8.12684107]
[1739465087945,0.303,2633.4,2633.3,3.79751]
[1739465088104,0.5919,2633.6,2633.5,3.79722]
[1739465088300,0.303,2633.6,2633.5,3.79722]
[1739465088641,0.38459986,2633.6,2633.3,3.79737]
[1739465088946,0.08159986,2633.6,2633.5,3.79722]
[1739465089129,3.89100393,2633.9,2633.5,3.79722]
[1739465089315,4.31040432,2633.9,2633.7,3.79692]
[1739465089509,0.08159986,2633.8,2633.7,3.79692]
[1739465089708,0.08159986,2633.8,2633.5,3.79713]
[1739465090330,0.08159986,2633.8,2633.6,3.79708]
[1739465090711,0.08159986,2633.8,2633.7,3.79693]
[1739465091118,0.08159986,2633.8,2633.6,3.79698]
[1739465091313,0.08159986,2633.8,2633.7,3.79693]
[1739465091820,0.08159986,2633.8,2633.5,3.79713]
[1739465092443,0.08159986,2633.8,2633.6,3.79701]
[1739465093252,0.08159986,2633.8,2633.7,4.56193]
[1739465093806,0.303,2634.2,2633.8,3.79678]
[1739465094417,0.303,2634.2,2633.7,0.765]
[1739465094619,0.303,2634.2,2633.5,4.32875107]
[1739465094620,0.05495927,2634.1,2633.5,4.32875107]
[1739465094835,1.151697,2634.2,2633.2,8.90301107]
[1739465094836,0.5994,2633.8,2633.2,8.90301107]
[1739465095039,0.5994,2633.8,2633.3,3.7975]
[1739465095641,4.09923,2634.2,2633.4,3.79725]
[1739465095951,0.0075,2634.0,2633.6,3.79705]
[1739465096306,0.303,2633.9,2633.6,3.79705]
[1739465096507,0.303,2633.9,2633.7,3.79693]
[1739465097256,0.5919,2634.3,2633.6,4.62738]
[1739465097465,0.303,2634.0,2633.8,3.79668]
[1739465097760,0.303,2634.0,2633.9,3.79665]
[1739465097943,0.303,2634.0,2633.8,3.79678]
[1739465098432,0.303,2634.0,2633.8,3.79671]
[1739465098639,0.303,2634.0,2633.9,3.79665]
[1739465099035,0.303,2634.0,2633.7,7.59362]
[1739465099211,0.303,2634.0,2633.8,3.79676]
[1739465099413,0.303,2634.0,2633.9,3.79665]
[1739465099838,0.303,2634.0,2633.8,3.79678]
[1739465100204,0.303,2634.0,2633.7,3.79692]
[1739465100422,0.303,2634.0,2633.6,4.62735]
[1739465100654,0.8949,2634.0,2633.5,4.32875107]
[1739465100951,0.0075,2633.9,2633.2,8.12636107]
[1739465101153,3.89100393,2633.9,2633.7,3.79692]
[1739465101354,3.89100393,2633.9,2633.8,3.79679]
[1739465101553,0.303,2634.1,2633.9,3.79652]
[1739465102555,3.89100393,2634.3,2634.0,3.79644]
[1739465102863,0.5919,2634.7,2634.6,3.79564]
[1739465103064,0.303,2634.8,2634.4,4.32875107]
[1739465103357,0.303,2634.8,2634.6,3.79556]
[1739465103560,0.08355258,2634.7,2634.5,3.79569]
[1739465103724,0.08355258,2634.7,2634.4,4.32875107]
[1739465103910,4.09842,2634.8,2634.1,8.88701107]
[1739465104107,0.08355258,2634.6,2634.1,8.88701107]
[1739465104327,3.7955,2634.7,2634.1,8.88701107]
[1739465104557,0.08355258,2634.5,2633.8,5.15865107]
[1739465104758,0.0075,2634.3,2633.8,4.32875107]
[1739465104957,0.0075,2634.1,2633.5,8.95578107]
[1739465105112,0.04746208,2634.1,2633.5,8.95578107]
[1739465105311,0.08355258,2634.0,2633.6,3.79697]
[1739465105555,0.08355258,2634.0,2633.7,3.79685]
[1739465105756,3.80378,2634.2,2633.5,5.15865107]
[1739465105957,0.08381743,2633.9,2633.5,4.32875107]
[1739465106263,0.67571743,2633.8,2633.3,0.8269]
[1739465106424,0.97871743,2633.8,2633.3,0.8269]
[1739465106630,0.38681743,2633.8,2633.3,0.8269]
[1739465106872,0.38681743,2633.8,2633.4,3.79735]
[1739465107046,0.38681743,2633.8,2633.6,3.79706]
[1739465107269,0.38681743,2633.8,2633.6,3.797]
[1739465107443,0.38681743,2633.8,2633.7,3.79693]
[1739465107842,0.08381743,2633.8,2633.7,3.79693]
[1739465108040,0.74615006,2634.4,2633.7,3.79693]
[1739465108041,0.303,2634.4,2634.1,3.7963]
[1739465108243,0.303,2634.4,2634.2,3.79609]
[1739465108442,0.08381743,2634.3,2634.0,4.32875107]
[1739465108643,0.08381743,2634.3,2633.7,5.11765107]
[1739465108877,0.5919,2634.2,2633.8,3.79668]
[1739465109077,0.303,2634.4,2634.0,3.79643]
[1739465109291,0.08384531,2634.1,2634.0,8.12525107]
[1739465109445,0.303,2634.4,2634.0,8.12525107]
[1739465109675,0.08384531,2634.1,2634.0,8.61139043]
[1739465109881,0.303,2634.6,2634.3,3.79606]
[1739465110309,0.08384531,2634.5,2634.3,3.79606]
[1739465110513,0.08384531,2634.5,2634.3,3.79607]
[1739465110825,0.303,2634.6,2634.4,3.79593]
[1739465111005,0.303,2634.6,2634.5,3.79578]
[1739465111378,0.5919,2635.1,2634.5,3.79578]
[1739465111379,0.5919,2635.1,2634.9,3.79514]
[1739465111630,4.19400393,2635.3,2634.8,3.79531]
[1739465111840,0.0075,2635.2,2634.8,3.79527]
[1739465111979,4.19400393,2635.3,2634.8,3.79527]
[1739465112179,0.47859039,2635.2,2634.8,3.79527]
[1739465112977,0.303,2635.3,2634.7,5.14305107]
[1739465113337,0.303,2635.3,2634.8,3.79535]
[1739465113980,0.0075,2635.2,2634.7,4.32875107]
[1739465114213,0.0075,2635.0,2634.4,5.15135107]
[1739465114396,0.0075,2634.8,2634.2,3.79612]
[1739465114595,0.0075,2634.8,2634.4,3.79592]
[1739465115012,0.0075,2634.8,2634.4,7.59184]
[1739465115324,0.5919,2635.1,2634.7,3.79542]
[1739465115522,0.8949,2635.3,2634.8,3.79527]
[1739465116023,0.5919,2635.3,2634.8,3.79527]
[1739465116192,0.0075,2635.6,2634.7,4.32875107]
[1739465116193,0.5919,2635.6,2635.0,3.79502]
[1739465116399,0.302,2635.4,2635.1,3.79492]
[1739465116583,0.302,2635.4,2635.0,3.79502]
[1739465116782,0.302,2635.4,2635.1,3.79491]
[1739465117019,0.0075,2635.5,2635.0,3.79502]
[1739465117201,0.302,2635.4,2635.0,3.79498]
[1739465117415,0.8939,2635.6,2635.1,3.79483]
[1739465117851,0.8939,2635.6,2635.2,3.7947]
[1739465117987,0.8939,2635.6,2635.1,3.79483]
[1739465118186,4.68812,2635.6,2635.0,4.32875107]
[1739465118428,0.93369329,2635.5,2635.0,8.12379107]
[1739465118634,0.0075,2635.4,2634.7,8.12413107]
[1739465118935,0.5919,2635.2,2634.5,3.0]
[1739465119239,3.79441,2635.5,2634.5,3.0]
[1739465119240,0.8939,2635.5,2635.1,3.79484]
[1739465119913,4.68834,2635.5,2634.9,3.79509]
[1739465120114,0.04743474,2635.4,2634.8,0.8003]
[1739465120333,0.0075,2635.3,2634.6,3.79562]
[1739465120531,0.5994,2635.1,2634.6,3.79562]
[1739465121030,0.5994,2635.1,2634.7,3.79549]
[1739465121229,0.5994,2635.4,2634.8,7.59058]
[1739465121445,0.0075,2635.2,2634.6,3.79553]
[1739465121653,3.80227,2635.2,2634.6,3.79553]
[1739465121944,3.80227,2635.2,2634.4,8.12456107]
[1739465121945,0.0075,2635.0,2634.4,8.12456107]
[1739465122148,0.0075,2635.0,2634.5,3.79576]
[1739465122643,0.0075,2635.0,2634.4,8.12456107]
[1739465122850,4.242116,2635.0,2634.4,11.92041107]
[1739465123049,0.5919,2635.1,2634.5,3.79571]
[1739465123201,0.5919,2635.1,2634.4,4.32875107]
[1739465123543,0.302,2635.0,2634.5,3.79578]
[1739465123750,0.302,2635.0,2634.6,3.79564]
[1739465124244,0.302,2635.0,2634.7,3.79548]
[1739465124446,0.302,2635.0,2634.4,4.32875107]
[1739465124610,4.09713,2635.0,2634.4,8.12460107]
[1739465124825,0.5919,2635.1,2634.7,3.79544]
[1739465125018,0.302,2635.0,2634.8,3.79525]
[1739465125224,0.302,2635.0,2634.7,3.79544]
[1739465125466,0.302,2635.0,2634.6,3.79561]
[1739465125785,0.302,2635.0,2634.5,3.79572]
[1739465126008,0.302,2635.0,2634.5,3.79571]
[1739465126122,0.302,2635.0,2634.6,3.79563]
[1739465126323,0.302,2635.0,2634.6,3.79564]
[1739465126882,0.302,2635.0,2634.9,3.79521]
[1739465127444,0.302,2635.0,2634.8,3.79524]
[1739465127882,0.302,2635.0,2634.9,3.79521]
[1739465128025,0.5919,2635.3,2634.7,5.08595107]
[1739465128223,0.302,2635.3,2635.2,3.79477]
[1739465128468,0.302,2635.3,2634.7,8.88140107]
[1739465128634,0.302,2635.3,2635.2,3.79477]
[1739465128834,0.5919,2635.7,2635.4,3.79439]
[1739465129223,0.5919,2635.7,2635.4,3.79448]
[1739465129638,0.5919,2635.7,2635.6,3.7942]
[1739465129842,0.0971337,2635.8,2635.6,3.7942]
[1739465130336,0.0971337,2635.8,2635.4,3.79448]
[1739465130543,0.0971337,2635.8,2635.5,3.79426]
[1739465130875,0.0971337,2635.8,2635.6,3.79411]
[1739465131875,0.0971337,2635.8,2635.7,3.79405]
[1739465132433,0.0971337,2635.8,2635.6,8.12295107]
[1739465132759,0.0971337,2635.8,2635.6,4.32875107]
[1739465133078,0.0971337,2635.8,2635.6,8.12281107]
[1739465133232,0.08571888,2635.7,2635.6,12.81043229]
[1739465133432,0.0971337,2635.8,2635.6,12.81043229]
[1739465133771,0.0971337,2635.8,2635.7,3.79405]
[1739465134126,0.0971337,2635.8,2635.6,9.01632229]
[1739465134332,0.0971337,2635.8,2635.6,5.22226229]
[1739465134948,0.0971337,2635.8,2635.6,9.01639229]
[1739465135145,0.0971337,2635.8,2635.7,0.90163923]
[1739465135463,0.0971337,2635.8,2635.7,4.69568923]
[1739465137463,0.0971337,2635.8,2635.7,8.48307401]
[1739465137664,0.0971337,2635.8,2635.7,12.16192273]
[1739465139547,0.0971337,2635.8,2635.7,11.40302273]
[1739465140089,0.0971337,2635.8,2635.7,8.40302273]
[1739465140381,0.18372266,2635.8,2635.7,3.7073335]
[1739465140590,0.18372266,2635.8,2635.7,7.5013835]
[1739465141678,0.18372266,2635.8,2635.7,3.7073335]
[1739465142236,0.18372266,2635.8,2635.4,3.7073335]
[1739465142457,0.5919,2635.6,2635.1,3.7073335]
[1739465142635,0.3886168,2635.5,2635.1,3.7073335]
[1739465142834,0.3886168,2635.5,2635.4,3.79449]
[1739465143540,0.3886168,2635.5,2635.1,3.7073335]
[1739465144355,0.0075,2635.4,2634.8,3.7073335]
[1739465144556,0.5919,2635.1,2634.8,3.7073335]
[1739465145081,0.0866168,2635.0,2634.8,3.7073335]
[1739465145284,0.0866168,2635.0,2634.9,3.79521]
[1739465145486,0.0866168,2635.0,2634.9,5.74160435]
[1739465145653,0.5919,2635.4,2634.9,10.05871769]
[1739465145840,0.8939,2635.4,2635.0,3.795]
[1739465146212,0.0866168,2635.3,2635.2,8.11188334]
[1739465146890,0.6890337,2635.8,2635.6,3.7942]
[1739465147040,0.3991337,2635.8,2635.7,3.79405]
[1739465147239,0.3991337,2635.8,2635.5,4.31711334]
[1739465147443,0.3991337,2635.8,2635.5,8.11143334]
[1739465147865,0.3991337,2635.8,2635.4,3.79448]
[1739465148070,0.3991337,2635.8,2635.4,3.79449]
[1739465148303,0.5919,2635.7,2635.2,8.11178334]
[1739465148597,0.0866168,2635.6,2635.2,8.11178334]
[1739465148748,0.0866168,2635.6,2635.5,3.79434]
[1739465148942,0.0866168,2635.6,2635.5,8.89764688]
[1739465149147,0.0971337,2635.8,2635.7,3.79405]
[1739465149441,0.0971337,2635.8,2635.6,3.79418]
[1739465149644,0.0833715,2635.7,2635.5,8.11145334]
[1739465149895,0.0971337,2635.8,2635.6,3.7942]
[1739465150187,0.08348999,2635.7,2635.6,3.79413]
[1739465150492,0.0971337,2635.8,2635.5,8.11137334]
[1739465150670,0.08348999,2635.7,2635.5,8.11137334]
[1739465150872,0.0971337,2635.8,2635.6,3.7942]
[1739465151053,0.0971337,2635.8,2635.7,3.79405]
[1739465152378,0.5919,2637.6,2636.1,0.0075]
[1739465152587,1.34904811,2637.6,2637.2,4.31711334]
[1739465152793,6.07272,2637.4,2636.9,4.31711334]
[1739465153099,0.5919,2637.2,2636.6,7.31711334]
[1739465153259,0.5919,2637.2,2636.6,4.31711334]
[1739465153463,0.5919,2637.2,2636.7,3.79259]
[1739465153662,0.438365,2637.1,2636.7,3.79259]
[1739465154094,0.438365,2637.1,2636.6,4.31711334]
[1739465154095,0.5919,2637.2,2636.9,3.79231]
[1739465154302,0.5919,2637.2,2637.0,3.79216]
[1739465154487,0.5919,2637.2,2636.9,4.31711334]
[1739465154695,0.5919,2637.2,2636.9,8.10942334]
[1739465155019,0.5919,2637.2,2637.0,3.79216]
[1739465155221,0.5919,2637.2,2636.9,8.10939334]
[1739465155907,0.5919,2637.2,2636.9,4.31711334]
[1739465156111,0.5919,2637.2,2636.9,8.10936334]
[1739465156287,0.5919,2637.2,2637.0,3.79217]
[1739465156821,0.5919,2637.2,2636.9,4.31711334]
[1739465157140,1.060451,2637.2,2636.9,4.31711334]
[1739465157437,0.302,2637.4,2637.0,3.79209]
[1739465157727,0.3095,2637.4,2637.0,3.79209]
[1739465158497,0.3095,2637.4,2637.1,3.79202]
[1739465158885,0.0075,2637.4,2637.1,3.79202]
[1739465159087,0.302,2637.4,2636.9,8.10932334]
[1739465160031,0.8939,2637.5,2637.1,3.792]
[1739465160198,0.8939,2637.5,2637.2,3.79179]
[1739465160526,0.0075,2637.4,2636.9,4.31711334]
[1739465160828,3.84653086,2637.4,2636.8,3.79247]
[1739465161028,0.47404309,2637.3,2636.8,3.79247]
[1739465161633,0.47404309,2637.3,2636.9,3.79232]
[1739465161931,0.5919,2636.8,2636.0,5.14351334]
[1739465162112,3.79286,2636.6,2636.0,4.31711334]
[1739465162314,0.302,2636.5,2636.0,11.90416334]
[1739465162536,0.5919,2636.3,2635.7,5.14351334]
[1739465162705,3.80085,2636.2,2635.7,4.31711334]
[1739465162908,3.79378,2635.9,2635.4,4.31711334]
[1739465163100,0.5919,2635.8,2635.5,3.79434]
[1739465163300,0.07927049,2635.7,2635.6,3.79418]
[1739465163506,0.302,2635.9,2635.8,3.79391]
[1739465163828,0.38127049,2635.9,2635.8,4.31711334]
[1739465164028,0.38127049,2635.9,2635.2,3.0]
[1739465164029,0.38127049,2635.9,2635.5,3.79425]
[1739465164236,0.38127049,2635.9,2635.5,4.31711334]
[1739465164622,0.38127049,2635.9,2635.5,8.11140334]
[1739465165020,0.38127049,2635.9,2635.7,3.79393]
[1739465165237,0.38877049,2635.9,2635.7,7.5879]
[1739465165435,0.38127049,2635.9,2635.7,7.5879]
[1739465165605,0.38127049,2635.9,2635.6,3.79418]
[1739465166555,0.38127049,2635.9,2635.5,8.11136334]
[1739465167074,0.38127049,2635.9,2635.5,4.31711334]
[1739465167212,0.38127049,2635.9,2635.6,3.79407]
[1739465167408,0.07927049,2635.9,2635.8,3.79391]
[1739465167611,0.07927049,2635.9,2635.8,8.11102334]
[1739465167812,0.302,2636.0,2635.9,3.79377]
[1739465168015,0.302,2636.0,2635.8,8.11102334]
[1739465168227,0.38127049,2636.0,2635.8,4.31711334]
[1739465168476,0.0075,2635.9,2635.5,4.31711334]
[1739465168619,0.08677049,2635.9,2635.6,3.79418]
[1739465168813,0.08677049,2635.9,2635.6,3.7941]
[1739465169012,0.08677049,2635.9,2635.7,3.79398]
[1739465169419,0.07927049,2635.9,2635.8,8.11102334]
[1739465170255,0.07927049,2635.9,2635.5,8.11140334]
[1739465170964,0.07927049,2635.9,2635.6,3.7941]
[1739465171176,0.07927049,2635.9,2635.8,3.79391]
[1739465171546,0.07927049,2635.9,2635.5,4.31711334]
[1739465171547,0.07927049,2635.9,2635.5,8.11140334]
[1739465171790,0.07927049,2635.9,2635.8,3.79391]
[1739465172806,0.07927049,2635.9,2635.8,8.898293]
[1739465173110,1.36711499,2636.5,2635.8,8.898293]
[1739465173111,0.302,2636.4,2635.8,11.86969634]
[1739465173424,3.801,2636.1,2635.5,4.31711334]
[1739465173557,0.5919,2636.0,2635.6,3.79413]
[1739465174114,0.07794691,2635.9,2635.5,8.11137334]
[1739465174409,0.0075,2635.8,2635.5,8.11137334]
[1739465174612,3.80141,2635.8,2635.5,4.31711334]
[1739465174910,0.5919,2636.0,2635.8,3.7938]
[1739465175223,0.5919,2636.0,2635.8,3.79381]
[1739465175424,0.5919,2636.0,2635.6,3.7941]
[1739465175565,4.37547627,2636.0,2635.6,3.7941]
[1739465175878,3.80132,2635.9,2635.5,4.31711334]
[1739465176078,0.0075,2635.9,2635.6,3.79411]
[1739465176260,0.0075,2635.9,2635.5,3.79434]
[1739465176467,0.0075,2635.9,2635.5,3.79433]
[1739465177672,0.0075,2635.9,2635.5,3.70894852]
[1739465177898,0.76747479,2636.3,2635.8,3.70894852]
[1739465178120,0.302,2636.2,2635.8,3.70894852]
[1739465178413,0.302,2636.2,2635.8,7.50283852]
[1739465178607,0.5819,2636.1,2635.8,7.50277852]
[1739465178810,4.45320145,2636.1,2635.6,3.7941]
[1739465179108,0.65972145,2636.1,2635.7,3.79403]
[1739465179312,0.0075,2636.0,2635.6,3.79418]
[1739465179615,0.5819,2636.1,2635.5,3.70894852]
[1739465179797,0.07782145,2635.9,2635.5,3.70894852]
[1739465179967,3.80151,2635.8,2635.5,3.70894852]
[1739465180173,0.5819,2635.7,2635.5,3.70894852]
[1739465180686,0.07799569,2635.6,2635.5,3.70894852]
[1739465180887,0.07799569,2635.6,2635.2,7.50370852]
[1739465181132,0.0075,2635.5,2635.2,3.70894852]
[1739465181269,0.5819,2635.7,2635.3,3.79463]
[1739465181474,0.07799569,2635.6,2635.5,3.79433]
[1739465181874,0.08549569,2635.6,2635.5,7.50327852]
[1739465182269,0.07799569,2635.6,2635.5,7.50327852]
[1739465182474,0.302,2635.9,2635.8,3.79391]
[1739465182676,0.37999569,2635.9,2635.8,7.50285852]
[1739465182878,0.07799569,2635.9,2635.8,7.50285852]
[1739465183280,0.07799569,2635.9,2635.5,7.50320852]
[1739465183622,3.87176569,2635.9,2635.5,3.70894852]
[1739465184118,3.79392,2635.8,2635.5,3.70894852]
[1739465184276,0.0075,2635.8,2635.5,3.70894852]
[1739465184479,3.80142,2635.8,2635.5,3.70894852]
[1739465184707,0.07799569,2635.7,2635.5,3.70894852]
[1739465185053,3.79418,2635.7,2635.5,3.70894852]
[1739465185224,3.79418,2635.7,2635.0,3.79496]
[1739465185225,1.04756369,2635.6,2634.9,3.70894852]
[1739465185377,3.79473,2635.3,2634.8,3.79534]
[1739465185582,0.5819,2635.2,2634.8,3.79527]
[1739465185817,0.302,2635.1,2634.8,3.79525]
[1739465186126,0.302,2635.1,2634.9,3.70894852]
[1739465186481,0.07756357,2635.0,2634.9,7.50404852]
[1739465187949,0.07756357,2635.0,2634.9,12.43287737]
[1739465188423,0.302,2635.6,2635.3,7.58905]
[1739465188624,0.302,2635.6,2635.3,7.50345852]
[1739465188881,0.07756357,2635.5,2635.4,3.79447]
[1739465189217,0.07756357,2635.5,2635.3,7.50345852]
[1739465189418,0.07756357,2635.5,2635.3,3.70894852]
[1739465189727,0.07756357,2635.5,2635.3,3.79451]
[1739465189933,0.07756357,2635.5,2635.0,3.79506]
[1739465190260,0.07756357,2635.5,2635.2,3.79477]
[1739465190822,3.87192357,2635.5,2635.0,3.795]
[1739465191018,4.37661,2635.3,2634.8,8.11180809]
[1739465191235,0.0075,2635.2,2634.9,3.79519]
[1739465191744,0.07756357,2635.1,2634.8,11.90708809]
[1739465192054,0.07756357,2635.1,2634.9,3.79521]
[1739465192416,0.07756357,2635.1,2635.0,3.79506]
[1739465192663,0.07756357,2635.1,2635.0,5.01425732]
[1739465192820,0.07756357,2635.1,2635.0,5.77144081]
[1739465193164,0.302,2635.3,2635.2,3.79477]
[1739465193335,0.5819,2635.8,2635.6,3.79408]
[1739465193532,0.07756357,2635.7,2635.2,4.67150119]
[1739465193723,0.07756357,2635.7,2635.5,3.79428]
[1739465193921,0.302,2635.8,2635.5,3.79428]
[1739465194149,0.07756357,2635.7,2635.6,3.7942]
[1739465194340,0.302,2635.8,2635.6,3.7942]
[1739465194666,0.302,2635.8,2635.4,3.79437]
[1739465194851,0.302,2635.8,2635.2,4.31653809]
[1739465195018,0.302,2635.8,2635.4,3.79446]
[1739465195763,0.302,2635.8,2635.6,3.79412]
[1739465195944,0.302,2635.8,2635.6,3.79411]
[1739465196658,0.302,2635.8,2635.4,3.79442]
[1739465196863,4.09598,2635.8,2635.3,3.79463]
[1739465197025,3.7942,2635.6,2635.2,4.31653809]
[1739465197225,0.0075,2635.5,2635.1,3.79483]
[1739465197537,0.5819,2635.4,2635.1,3.79483]
[1739465198161,0.5819,2635.4,2634.9,11.11162809]
[1739465198361,0.5819,2635.4,2633.9,0.2]
[1739465198362,3.79484,2635.2,2634.7,7.59074]
[1739465198662,3.80222,2635.3,2634.8,3.79526]
[1739465199022,3.80222,2635.3,2634.8,7.59053]
[1739465199231,0.0075,2635.3,2634.9,3.79508]
[1739465199564,0.0075,2635.3,2634.8,3.79526]
[1739465199767,3.80219,2635.3,2634.8,3.79533]
[1739465199986,4.5125367,2635.3,2634.8,3.79533]
[1739465200289,0.7178467,2635.3,2634.6,5.14683809]
[1739465200421,0.7178467,2635.3,2634.9,3.79514]
[1739465200615,0.7178467,2635.3,2634.8,3.79528]
[1739465200616,4.5125267,2635.3,2634.8,3.79528]
[1739465200816,0.7178467,2635.3,2634.8,3.79528]
[1739465201063,0.7178467,2635.3,2635.1,3.79487]
[1739465201237,0.5819,2635.4,2635.1,3.79487]
[1739465201832,0.5819,2635.4,2635.1,3.79485]
[1739465202059,3.89850393,2635.6,2634.9,4.31653809]
[1739465202260,0.302,2635.5,2635.3,3.79452]
[1739465202571,0.302,2635.5,2635.2,3.79466]
[1739465202720,1.15889739,2635.5,2635.2,3.79475]
[1739465202922,0.302,2635.5,2635.3,3.79457]
[1739465203157,0.302,2635.5,2635.2,3.79476]
[1739465203358,0.302,2635.5,2635.3,3.7946]
[1739465204181,0.301,2635.8,2635.6,3.7942]
[1739465204578,0.301,2635.8,2635.4,8.11089809]
[1739465204755,0.301,2635.8,2635.5,3.79434]
[1739465204954,0.0075,2635.5,2634.9,3.0]
[1739465205259,3.80221,2635.3,2634.8,8.86686809]
[1739465205568,3.80221,2635.3,2634.8,8.11176809]
[1739465205764,0.0075,2635.3,2635.0,3.79494]
[1739465205965,0.0075,2635.3,2634.9,3.79506]
[1739465206165,0.0075,2635.3,2634.9,4.55016]
[1739465206483,0.0075,2635.3,2634.9,3.79506]
[1739465206989,0.0075,2635.3,2635.0,3.795]
[1739465207163,0.0075,2635.3,2634.8,8.11182809]
[1739465207164,3.8022,2635.3,2634.8,8.11182809]
[1739465207478,3.80244,2635.1,2634.7,3.79535]
[1739465207640,3.80244,2635.1,2634.6,3.79561]
[1739465207845,3.80244,2635.1,2634.5,8.11222809]
[1739465208170,3.80244,2635.1,2634.7,3.79548]
[1739465208364,0.07708252,2635.0,2634.7,3.79548]
[1739465208568,0.07708252,2635.0,2634.8,3.79526]
[1739465208757,0.07708252,2635.0,2634.8,3.79524]
[1739465209140,0.07708252,2635.0,2634.9,3.79521]
[1739465210093,0.07708252,2635.0,2634.8,3.79533]
[1739465210245,0.07708252,2635.0,2634.8,3.79527]
[1739465210588,0.07708252,2635.0,2634.9,3.79521]
[1739465210793,0.07708252,2635.0,2634.9,5.316958]
[1739465211292,0.301,2635.3,2635.2,3.79477]
[1739465211465,0.0075,2635.2,2634.9,3.79509]
[1739465211649,0.0075,2635.2,2634.8,8.11184809]
[1739465211650,0.5819,2635.1,2634.8,8.11184809]
[1739465211850,0.0075,2635.0,2634.7,3.79547]
[1739465212047,0.08177305,2635.0,2634.6,4.59474]